bitfinex-derivatives/quotes_BTCF0:USTF0_20250508
["timestamp","ask_amount","ask_price","bid_price","bid_amount"]
[1746709458975,0.20259293,99446.0,99445.0,0.28190457]
[1746709459176,0.20259293,99446.0,99445.0,0.28290457]
[1746709459977,0.20259293,99446.0,99445.0,0.28190457]
[1746709460978,0.20259293,99446.0,99445.0,0.28190451]
[1746709463478,0.20259293,99446.0,99445.0,0.266186]
[1746709463672,0.20259293,99446.0,99445.0,0.28182634]
[1746709468179,0.37059293,99446.0,99445.0,0.0651]
[1746709468383,0.0502731,99442.0,99414.0,0.3608]
[1746709468686,0.3608,99424.0,99423.0,0.2011305]
[1746709468879,0.2011123,99432.0,99431.0,0.2011123]
[1746709469076,0.3691123,99432.0,99431.0,0.01566075]
[1746709469474,0.3691123,99432.0,99431.0,0.21677505]
[1746709469781,0.3691123,99432.0,99431.0,0.27815785]
[1746709470084,0.2011123,99432.0,99431.0,0.27815785]
[1746709471471,0.2021123,99432.0,99431.0,0.63884736]
[1746709471983,0.2011123,99432.0,99431.0,0.63884736]
[1746709472283,0.2011123,99432.0,99431.0,0.63984736]
[1746709472483,0.2011123,99432.0,99431.0,0.6246143]
[1746709474078,0.2318123,99432.0,99431.0,0.6246143]
[1746709478787,0.2318123,99432.0,99431.0,0.5629143]
[1746709478984,0.2938123,99432.0,99431.0,0.5629143]
[1746709479175,0.4618123,99432.0,99431.0,0.3618]
[1746709481183,0.4618123,99432.0,99431.0,0.3608]
[1746709481485,0.4618123,99432.0,99431.0,0.3618]
[1746709481878,0.4618123,99432.0,99431.0,0.3942]
[1746709482390,0.4638123,99432.0,99431.0,0.5953143]
[1746709482582,0.4638123,99432.0,99431.0,0.5943143]
[1746709482890,0.4648123,99432.0,99431.0,0.5943143]
[1746709489597,0.4648123,99432.0,99431.0,0.3932]
[1746709489797,0.4648123,99432.0,99431.0,0.5943143]
[1746709491999,0.4638123,99432.0,99431.0,0.5943143]
[1746709492199,0.4018123,99432.0,99431.0,0.5943143]
[1746709492401,0.3711123,99432.0,99431.0,0.5943143]
[1746709492799,0.3711123,99432.0,99431.0,0.6262143]
[1746709493197,0.2031123,99432.0,99431.0,0.6262143]
[1746709493996,0.002,99432.0,99431.0,0.6262143]
[1746709494207,0.00251,99439.0,99438.0,0.2011001]
[1746709494499,0.2010789,99449.0,99445.0,0.201086]
[1746709494704,0.2010785,99449.0,99445.0,0.201086]
[1746709494996,0.2010804,99448.0,99445.0,0.201086]
[1746709495202,0.2010825,99447.0,99445.0,0.264286]
[1746709496007,0.2010825,99447.0,99445.0,0.625086]
[1746709496904,0.2010784,99449.0,99445.0,0.625086]
[1746709497203,0.032,99450.0,99445.0,0.625086]
[1746709497599,0.032,99450.0,99445.0,0.626086]
[1746709497898,0.00251,99452.0,99445.0,0.626086]
[1746709498305,0.2010751,99451.0,99445.0,0.626086]
[1746709498802,0.2010751,99451.0,99445.0,0.625086]
[1746709499002,0.00250903,99446.0,99445.0,0.630086]
[1746709500490,0.00150903,99446.0,99445.0,0.627086]
[1746709500696,0.00150903,99446.0,99445.0,0.629086]
[1746709502101,0.00150903,99446.0,99445.0,0.809086]
[1746709502303,0.00150903,99446.0,99445.0,0.869086]
[1746709502799,0.00150903,99446.0,99445.0,0.809086]
[1746709503199,0.00150903,99446.0,99445.0,0.629086]
[1746709503401,0.56339293,99446.0,99445.0,0.268286]
[1746709503603,0.56439293,99446.0,99445.0,0.004]
[1746709503900,0.2011082,99434.0,99433.0,0.12599023]
[1746709504090,0.2011082,99434.0,99417.0,0.00150882]
[1746709504091,0.2011123,99432.0,99418.0,0.25563159]
[1746709504296,0.2011224,99427.0,99418.0,0.25563159]
[1746709504701,0.2011386,99419.0,99418.0,0.25563159]
[1746709504901,0.2011649,99406.0,99405.0,0.2011602]
[1746709505103,0.3691649,99406.0,99405.0,0.2011602]
[1746709505302,0.4349649,99406.0,99405.0,0.2011602]
[1746709506205,0.2011709,99404.0,99403.0,0.2011696]
[1746709506704,0.2669709,99404.0,99403.0,0.2011696]
[1746709506904,0.201173,99402.0,99401.0,0.59189198]
[1746709507105,0.369173,99402.0,99401.0,0.02991818]
[1746709507312,0.369173,99402.0,99394.0,0.2011887]
[1746709507313,0.2011871,99395.0,99394.0,0.2011887]
[1746709507902,0.2339866,99396.0,99395.0,0.2011871]
[1746709508806,0.2339866,99396.0,99395.0,0.2334871]
[1746709509212,0.4019866,99396.0,99395.0,0.2334871]
[1746709509409,0.4059866,99396.0,99395.0,0.2344871]
[1746709509600,0.4059866,99396.0,99395.0,0.001]
[1746709510404,0.2011871,99395.0,99394.0,0.001]
[1746709510608,0.2011871,99395.0,99371.0,0.0646]
[1746709510609,0.2012053,99386.0,99371.0,0.0646]
[1746709510906,0.2819653,99386.0,99380.0,0.2012169]
[1746709511101,0.4499653,99386.0,99381.0,0.201215]
[1746709511309,0.4499653,99386.0,99377.0,0.0303]
[1746709511503,0.5139653,99386.0,99378.0,0.2012207]
[1746709511903,0.5139653,99386.0,99377.0,0.0303]
[1746709512113,0.5139653,99386.0,99376.0,0.3608]
[1746709512317,0.5139653,99386.0,99378.0,0.2012198]
[1746709512511,0.5139653,99386.0,99377.0,0.2012226]
[1746709512816,0.3018696,99369.0,99368.0,0.05031]
[1746709513117,0.2515583,99369.0,99368.0,0.2515518]
[1746709514009,0.0503104,99369.0,99361.0,0.0503137]
[1746709514210,0.2012499,99366.0,99365.0,0.2012418]
[1746709514606,0.2012499,99364.0,99363.0,0.5620497]
[1746709515216,0.4324499,99364.0,99363.0,0.5630497]
[1746709516712,0.4324499,99364.0,99363.0,0.5620497]
[1746709516917,0.4344499,99364.0,99363.0,0.5630497]
[1746709517109,0.4364499,99364.0,99363.0,0.5640497]
[1746709518214,0.2684499,99364.0,99363.0,0.5640497]
[1746709520536,0.037,99364.0,99363.0,0.5640497]
[1746709520735,0.004,99364.0,99363.0,0.5640497]
[1746709521237,0.2052499,99364.0,99363.0,0.5640497]
[1746709521831,0.004,99364.0,99363.0,0.5640497]
[1746709522032,0.2052499,99364.0,99363.0,0.5640497]
[1746709522239,0.004,99364.0,99363.0,0.5640497]
[1746709523529,0.2052499,99364.0,99363.0,0.5640497]
[1746709523725,0.08072,99381.0,99363.0,0.63344]
[1746709523926,0.08072,99386.0,99384.0,0.2515072]
[1746709524130,0.2819253,99386.0,99385.0,0.2629074]
[1746709524337,0.3134253,99386.0,99385.0,0.2629074]
[1746709525237,0.4824253,99386.0,99385.0,0.2629074]
[1746709525626,0.2515238,99381.0,99378.0,0.050305]
[1746709525832,0.2012195,99379.0,99378.0,0.2515245]
[1746709526026,0.2412195,99379.0,99378.0,0.2515245]
[1746709527228,0.2412195,99379.0,99378.0,0.2545245]
[1746709527428,0.2412195,99379.0,99378.0,0.2575245]
[1746709527626,0.2422195,99379.0,99378.0,0.2585245]
[1746709528139,0.3702195,99379.0,99378.0,0.2585245]
[1746709529237,0.2022195,99379.0,99378.0,0.2585245]
[1746709534141,0.001,99379.0,99378.0,0.2585245]
[1746709534343,0.2022195,99379.0,99378.0,0.2585245]
[1746709534645,0.001,99379.0,99378.0,0.2585245]
[1746709534839,0.2022195,99379.0,99378.0,0.2585245]
[1746709535535,0.001,99379.0,99378.0,0.2585245]
[1746709536043,0.2022195,99379.0,99378.0,0.2585245]
[1746709536242,0.3702195,99379.0,99378.0,0.2585245]
[1746709537142,0.2022195,99379.0,99378.0,0.2585245]
[1746709538144,0.3702195,99379.0,99378.0,0.2585245]
[1746709539140,0.2022195,99379.0,99378.0,0.2585245]
[1746709539346,0.001,99379.0,99378.0,0.2585245]
[1746709539543,0.2022195,99379.0,99378.0,0.2585245]
[1746709540343,0.2022195,99379.0,99378.0,0.2909245]
[1746709541739,0.2022195,99379.0,99378.0,0.30628024]
[1746709541945,0.2022195,99379.0,99378.0,0.32193952]
[1746709542646,0.001,99379.0,99378.0,0.32193952]
[1746709543336,0.3608,99409.0,99378.0,0.25041502]
[1746709543541,0.2011755,99401.0,99400.0,0.201175]
[1746709543742,0.281893,99402.0,99401.0,0.201175]
[1746709543942,0.2660644,99408.0,99407.0,0.2011628]
[1746709544142,0.2660644,99408.0,99407.0,0.21688887]
[1746709544537,0.2989644,99408.0,99407.0,0.21688887]
[1746709544942,0.2989644,99408.0,99407.0,0.21688761]
[1746709545146,0.4669644,99408.0,99407.0,0.21688761]
[1746709546150,0.4679644,99408.0,99407.0,0.21688761]
[1746709546850,0.4669644,99408.0,99407.0,0.23226508]
[1746709547150,0.4689644,99408.0,99407.0,0.23226508]
[1746709547350,0.3009644,99408.0,99407.0,0.23226508]
[1746709547549,0.2999644,99408.0,99407.0,0.23226508]
[1746709547752,0.3009644,99408.0,99407.0,0.23226508]
[1746709548250,0.4689644,99408.0,99407.0,0.23226491]
[1746709548647,0.4709644,99408.0,99407.0,0.23226491]
[1746709548849,0.4709644,99408.0,99407.0,0.21688744]
[1746709549054,0.2698,99408.0,99407.0,0.01572471]
[1746709549243,0.4709608,99408.0,99407.0,0.01572471]
[1746709549943,0.201173,99402.0,99401.0,0.201173]
[1746709550142,0.369173,99402.0,99401.0,0.21648129]
[1746709550348,0.369173,99402.0,99401.0,0.2164811]
[1746709550745,0.432873,99402.0,99401.0,0.201173]
[1746709550945,0.432873,99402.0,99401.0,0.21648282]
[1746709551246,0.433873,99402.0,99401.0,0.21648282]
[1746709552250,0.433873,99402.0,99401.0,0.21672229]
[1746709553746,0.433873,99402.0,99401.0,0.21667487]
[1746709554948,0.433873,99402.0,99401.0,0.21662903]
[1746709556654,0.433873,99402.0,99401.0,0.01545603]
[1746709556956,0.2012013,99388.0,99387.0,0.5620004]
[1746709557158,0.3692013,99388.0,99387.0,0.0153314]
[1746709557855,0.2012033,99387.0,99386.0,0.2012052]
[1746709558053,0.4321033,99387.0,99386.0,0.2012052]
[1746709558251,0.2012114,99383.0,99382.0,0.0316]
[1746709558452,0.2012114,99383.0,99382.0,0.2328134]
[1746709559154,0.2012155,99382.0,99381.0,0.2012155]
[1746709559352,0.2670155,99382.0,99381.0,0.2012155]
[1746709559848,0.2012155,99381.0,99380.0,0.00150938]
[1746709560356,0.4347155,99381.0,99380.0,0.00150938]
[1746709561144,0.4347155,99381.0,99380.0,0.20372688]
[1746709561351,0.4347155,99381.0,99380.0,0.20368644]
[1746709562858,0.4347155,99381.0,99380.0,0.21996576]
[1746709563155,0.2003,99381.0,99380.0,0.21996576]
[1746709563360,0.4015155,99381.0,99380.0,0.21996576]
[1746709564160,0.2335155,99381.0,99380.0,0.21996576]
[1746709564459,0.2335155,99381.0,99380.0,0.23533615]
[1746709565261,0.4015155,99381.0,99380.0,0.23533615]
[1746709565717,0.4015155,99381.0,99380.0,0.23562289]
[1746709566071,0.4015155,99381.0,99380.0,0.23578556]
[1746709566961,0.4015155,99381.0,99380.0,0.03456806]
[1746709568662,0.4015155,99381.0,99380.0,0.03456772]
[1746709574563,0.4015155,99381.0,99380.0,0.01883933]
[1746709574769,0.4015155,99381.0,99380.0,0.0345678]
[1746709576861,0.4334155,99381.0,99380.0,0.0345678]
[1746709577669,0.4334155,99381.0,99380.0,0.0335678]
[1746709577860,0.4334155,99381.0,99380.0,0.0325678]
[1746709578060,0.4344155,99381.0,99380.0,0.0325678]
[1746709578859,0.4334155,99381.0,99380.0,0.0325678]
[1746709580860,0.4015155,99381.0,99380.0,0.0325678]
[1746709581768,0.3692155,99381.0,99380.0,0.0325678]
[1746709581968,0.3692155,99381.0,99380.0,0.2337853]
[1746709582168,0.3692155,99381.0,99380.0,0.0325678]
[1746709583161,0.3692155,99381.0,99380.0,0.0947678]
[1746709585071,0.3692155,99381.0,99380.0,0.0643678]
[1746709585369,0.4333155,99381.0,99380.0,0.0643678]
[1746709585762,0.4333155,99381.0,99380.0,0.0325678]
[1746709589167,0.4333155,99381.0,99380.0,0.01719741]
[1746709589973,0.4333155,99381.0,99380.0,0.00146894]
[1746709590764,0.4343155,99381.0,99380.0,0.00146894]
[1746709590966,0.4343155,99381.0,99380.0,0.01662975]
[1746709592073,0.4343155,99381.0,99380.0,0.00146894]
[1746709595069,0.4343155,99381.0,99380.0,0.01661932]
[1746709595874,0.4343155,99381.0,99363.0,0.0503129]
[1746709595875,0.201258,99360.0,99346.0,0.3608]
[1746709596082,0.201258,99360.0,99349.0,0.0648]
[1746709596278,0.2012783,99350.0,99349.0,0.033]
[1746709596982,0.2012783,99350.0,99349.0,0.04834778]
[1746709597172,0.3692783,99350.0,99349.0,0.033]
[1746709597371,0.4014783,99350.0,99349.0,0.033]
[1746709597677,0.4324783,99350.0,99349.0,0.033]
[1746709598071,0.4374783,99350.0,99349.0,0.034]
[1746709599080,0.4374783,99350.0,99349.0,0.2352803]
[1746709599280,0.4374783,99350.0,99349.0,0.034]
[1746709599482,0.4064783,99350.0,99349.0,0.2352803]
[1746709599668,0.4104783,99350.0,99349.0,0.2362803]
[1746709601479,0.3782783,99350.0,99349.0,0.2362803]
[1746709602184,0.2102783,99350.0,99349.0,0.2362803]
[1746709606675,0.2102783,99350.0,99349.0,0.035]
[1746709606879,0.2745783,99350.0,99349.0,0.035]
[1746709607080,0.4750783,99350.0,99349.0,0.2362803]
[1746709608075,0.4750783,99350.0,99349.0,0.035]
[1746709609983,0.4750783,99350.0,99349.0,0.2362803]
[1746709610179,0.4750783,99350.0,99349.0,0.2673803]
[1746709610485,0.4730783,99350.0,99349.0,0.2663803]
[1746709610683,0.4690783,99350.0,99349.0,0.2653803]
[1746709610978,0.4720783,99350.0,99349.0,0.033]
[1746709611179,0.2012803,99349.0,99348.0,0.00150975]
[1746709611378,0.2013026,99340.0,99339.0,0.2012987]
[1746709612183,0.3693026,99340.0,99339.0,0.2622987]
[1746709612483,0.4024026,99340.0,99339.0,0.2622987]
[1746709613085,0.4034026,99340.0,99339.0,0.2652987]
[1746709616085,0.4034026,99340.0,99339.0,0.2662987]
[1746709616879,0.4034026,99340.0,99339.0,0.065]
[1746709617080,0.3703026,99340.0,99339.0,0.2663005]
[1746709619087,0.2023026,99340.0,99339.0,0.2663005]
[1746709619690,0.2023026,99340.0,99339.0,0.065]
[1746709620081,0.3703026,99340.0,99339.0,0.2663005]
[1746709620276,0.4034026,99340.0,99339.0,0.2663005]
[1746709626492,0.2021,99340.0,99339.0,0.2663005]
[1746709626791,0.169,99340.0,99339.0,0.4863005]
[1746709626995,0.169,99340.0,99339.0,0.6063005]
[1746709627192,0.001,99340.0,99339.0,0.7743005]
[1746709627991,0.0327,99357.0,99356.0,0.2012661]
[1746709628294,0.2339641,99357.0,99356.0,0.21653806]
[1746709629194,0.2339641,99357.0,99356.0,0.27913806]
[1746709629797,0.2349641,99357.0,99356.0,0.27913806]
[1746709630398,0.2349641,99357.0,99356.0,0.6246661]
[1746709630690,0.2022641,99357.0,99356.0,0.6246661]
[1746709631291,0.2022641,99357.0,99356.0,0.65521828]
[1746709631492,0.2012641,99357.0,99356.0,0.65521828]
[1746709631693,0.2012641,99357.0,99356.0,0.65621828]
[1746709633096,0.2012641,99357.0,99356.0,0.65621585]
[1746709633296,0.2012641,99357.0,99356.0,0.6410562]
[1746709634395,0.2012641,99357.0,99356.0,0.65621457]
[1746709634697,0.2012641,99357.0,99356.0,0.65621307]
[1746709635299,0.2012641,99357.0,99356.0,0.6410562]
[1746709635985,0.2331641,99357.0,99356.0,0.0163901]
[1746709636199,0.6616641,99357.0,99356.0,1e-07]
[1746709636403,0.4316641,99357.0,99356.0,1e-07]
[1746709637695,0.0503171,99355.0,99352.0,0.2012726]
[1746709637895,0.363988,99354.0,99353.0,0.0324]
[1746709638198,0.5130701,99354.0,99353.0,0.2336722]
[1746709640206,0.3470701,99354.0,99353.0,0.2336722]
[1746709640497,0.3470701,99354.0,99353.0,0.0324]
[1746709640697,0.7078701,99354.0,99353.0,0.0324]
[1746709640890,0.7078701,99354.0,99353.0,0.2336722]
[1746709641296,0.7098701,99354.0,99353.0,0.2346722]
[1746709641705,0.7098701,99354.0,99353.0,0.2022722]
[1746709642094,0.8768701,99354.0,99353.0,0.2012722]
[1746709645910,0.5160701,99354.0,99353.0,0.2012722]
[1746709647713,0.2012722,99353.0,99352.0,0.033]
[1746709647905,0.2012722,99353.0,99352.0,0.2342742]
[1746709648102,0.2650722,99353.0,99352.0,0.2342742]
[1746709648305,0.4330722,99353.0,99352.0,0.2342742]
[1746709648506,0.4330722,99353.0,99352.0,0.24958165]
[1746709649021,0.4350722,99353.0,99352.0,0.24958165]
[1746709649316,0.2680722,99353.0,99352.0,0.2342742]
[1746709649922,0.2680722,99353.0,99352.0,0.033]
[1746709650222,0.4360722,99353.0,99352.0,0.2342742]
[1746709651108,0.4360722,99353.0,99352.0,0.033]
[1746709651510,0.4360722,99353.0,99352.0,0.2342742]
[1746709651716,0.4360722,99353.0,99352.0,0.033]
[1746709652526,0.4360722,99353.0,99352.0,0.2342742]
[1746709653124,0.4360722,99353.0,99352.0,0.033]
[1746709653919,0.4360722,99353.0,99346.0,0.2516022]
[1746709653920,0.0503196,99350.0,99346.0,0.2516022]
[1746709654118,0.2012843,99347.0,99346.0,0.2516022]
[1746709655917,0.2022843,99347.0,99346.0,0.2516022]
[1746709659830,0.2012884,99345.0,99344.0,0.6265892]
[1746709661932,0.2012884,99345.0,99344.0,0.6275892]
[1746709663828,0.2012884,99345.0,99344.0,0.3935]
[1746709664025,0.2315884,99345.0,99344.0,0.5947904]
[1746709664222,0.3995884,99345.0,99344.0,0.5947904]
[1746709664628,0.3692884,99345.0,99344.0,0.5947904]
[1746709665232,0.2012884,99345.0,99344.0,0.5947904]
[1746709665825,0.2032884,99345.0,99344.0,0.5947904]
[1746709666131,0.2042884,99345.0,99344.0,0.6263904]
[1746709666434,0.2032884,99345.0,99344.0,0.6263904]
[1746709666622,0.2042884,99345.0,99344.0,0.6263904]
[1746709667130,0.2032884,99345.0,99344.0,0.6263904]
[1746709668533,0.2032884,99345.0,99344.0,0.6916299]
[1746709669434,0.2032884,99345.0,99344.0,0.70715866]
[1746709669635,0.2022884,99345.0,99344.0,0.70715866]
[1746709670128,0.2012884,99345.0,99344.0,0.70715866]
[1746709670335,0.2022884,99345.0,99344.0,0.69715866]
[1746709670529,0.2022884,99345.0,99344.0,0.29635866]
[1746709670934,0.2012884,99345.0,99344.0,0.29635866]
[1746709671241,0.3692884,99345.0,99344.0,0.29761154]
[1746709671535,0.4321884,99345.0,99344.0,0.29760196]
[1746709671931,0.4321884,99345.0,99344.0,0.26590196]
[1746709674333,0.4321884,99345.0,99344.0,0.06461156]
[1746709675644,0.4321884,99345.0,99344.0,0.26590196]
[1746709680345,0.42715334,99345.0,99344.0,0.26590196]
[1746709683346,0.42715334,99345.0,99344.0,0.04912876]
[1746709683643,0.42715334,99345.0,99344.0,0.26615377]
[1746709683836,0.42715334,99345.0,99344.0,0.06486337]
[1746709684340,0.42715334,99345.0,99344.0,0.03226337]
[1746709687041,0.42715334,99345.0,99344.0,0.03226369]
[1746709689743,0.2013127,99333.0,99332.0,0.15385273]
[1746709689948,0.5621127,99333.0,99332.0,0.15385273]
[1746709690139,0.7301127,99333.0,99332.0,0.15385273]
[1746709690741,0.7944127,99333.0,99332.0,0.15385273]
[1746709690937,0.7984127,99333.0,99332.0,0.15485273]
[1746709691144,0.7984127,99333.0,99332.0,0.001]
[1746709691850,0.7984127,99333.0,99332.0,0.002]
[1746709692150,0.7944127,99333.0,99332.0,0.001]
[1746709692354,0.7944127,99333.0,99332.0,0.002]
[1746709693754,0.89508471,99333.0,99332.0,0.002]
[1746709695755,0.90520863,99333.0,99332.0,0.002]
[1746709695957,0.89508471,99333.0,99332.0,0.002]
[1746709699661,0.7944127,99333.0,99332.0,0.002]
[1746709700850,0.8748927,99333.0,99332.0,0.002]
[1746709701760,0.8748927,99333.0,99332.0,0.01773759]
[1746709701951,0.8748927,99333.0,99332.0,0.03347106]
[1746709702863,0.8748927,99333.0,99332.0,0.01773347]
[1746709703160,0.8748927,99333.0,99332.0,0.03347107]
[1746709704459,0.7944127,99333.0,99332.0,0.03347107]
[1746709704657,0.168,99333.0,99332.0,0.90558577]
[1746709705157,0.2013127,99333.0,99332.0,0.82358577]
[1746709705364,0.2013127,99333.0,99332.0,0.76358577]
[1746709705662,0.2013127,99333.0,99332.0,0.82528577]
[1746709706262,0.2013127,99333.0,99332.0,0.65728577]
[1746709706775,0.2013127,99333.0,99332.0,0.65728442]
[1746709707574,0.2013127,99333.0,99332.0,0.65728448]
[1746709707972,0.2013127,99333.0,99332.0,0.45596972]
[1746709708277,0.2013127,99333.0,99332.0,0.45596997]
[1746709708678,0.5621127,99333.0,99332.0,0.09516997]
[1746709708978,0.5621127,99333.0,99332.0,0.09517002]
[1746709711376,0.5621127,99333.0,99332.0,0.06447002]
[1746709712080,0.6256127,99333.0,99332.0,0.06447002]
[1746709712378,0.7936127,99333.0,99332.0,0.06447002]
[1746709712880,0.7936127,99333.0,99332.0,0.06447096]
[1746709713277,0.201335,99322.0,99321.0,0.125815]
[1746709713483,0.562135,99322.0,99321.0,0.14155316]
[1746709714273,0.595235,99322.0,99321.0,0.125815]
[1746709714676,0.627835,99322.0,99321.0,0.125815]
[1746709715484,0.631835,99322.0,99321.0,0.126815]
[1746709715986,0.635835,99322.0,99321.0,0.127815]
[1746709717084,0.803835,99322.0,99321.0,0.127815]
[1746709718686,0.803835,99322.0,99321.0,0.125419]
[1746709721387,0.738135,99322.0,99321.0,0.125419]
[1746709721592,0.377335,99322.0,99321.0,0.125419]
[1746709722182,0.209335,99322.0,99321.0,0.125419]
[1746709722385,0.209335,99322.0,99321.0,0.326756]
[1746709723191,0.209335,99322.0,99321.0,0.390756]
[1746709723590,0.209335,99322.0,99321.0,0.40213055]
[1746709724896,0.209335,99322.0,99321.0,0.40214061]
[1746709725395,0.209335,99322.0,99321.0,0.43361777]
[1746709725694,0.201335,99322.0,99321.0,0.43361777]
[1746709726195,0.202335,99322.0,99321.0,0.43261777]
[1746709726396,0.203335,99322.0,99321.0,0.43161777]
[1746709726590,0.203335,99322.0,99321.0,0.43169539]
[1746709728192,0.203335,99322.0,99321.0,0.42023316]
[1746709728400,0.203335,99322.0,99321.0,0.43169399]
[1746709728592,0.203335,99322.0,99321.0,0.4316942]
[1746709728798,0.203335,99322.0,99321.0,0.43171883]
[1746709729293,0.564135,99322.0,99321.0,0.19938183]
[1746709729894,0.626935,99322.0,99321.0,0.19938183]
[1746709730096,0.794935,99322.0,99321.0,0.19938229]
[1746709730902,0.794935,99322.0,99321.0,0.40071929]
[1746709731098,0.626935,99322.0,99321.0,0.19938229]
[1746709731603,0.626935,99322.0,99321.0,0.19939172]
[1746709731804,0.626935,99322.0,99321.0,0.19951144]
[1746709732101,0.626935,99322.0,99321.0,0.40084844]
[1746709732314,0.626935,99322.0,99321.0,0.19951144]
[1746709733300,0.626935,99322.0,99321.0,0.43364844]
[1746709733495,0.626935,99322.0,99321.0,0.23231144]
[1746709734803,0.626935,99322.0,99321.0,0.23228435]
[1746709735003,0.626935,99322.0,99321.0,0.43362135]
[1746709735301,0.626935,99322.0,99321.0,0.23228435]
[1746709736704,0.626935,99322.0,99321.0,0.43362135]
[1746709737005,0.626935,99322.0,99321.0,0.23228435]
[1746709740710,0.626935,99322.0,99321.0,0.23227041]
[1746709743013,0.626935,99322.0,99321.0,0.19947041]
[1746709743311,0.2013573,99311.0,99310.0,0.2014593]
[1746709744012,0.2013573,99311.0,99310.0,0.0001]
[1746709744200,0.2013573,99311.0,99310.0,0.2014593]
[1746709744605,0.2023573,99311.0,99310.0,0.2350593]
[1746709745212,0.2033573,99311.0,99310.0,0.2380593]
[1746709746913,0.2335573,99311.0,99310.0,0.2380593]
[1746709747318,0.2033573,99311.0,99310.0,0.2380593]
[1746709753316,0.2013573,99311.0,99310.0,0.2883987]
[1746709755117,0.2013573,99311.0,99310.0,0.30413774]
[1746709755514,0.2013573,99311.0,99310.0,0.30413779]
[1746709755712,0.2013573,99311.0,99310.0,0.3198771]
[1746709757317,0.2013573,99311.0,99310.0,0.31987716]
[1746709762722,0.00251,99315.0,99314.0,0.2013512]
[1746709762924,0.3020218,99319.0,99318.0,0.2516718]
[1746709763124,0.3020218,99319.0,99318.0,0.28315026]
[1746709764026,0.3030218,99319.0,99318.0,0.28515026]
[1746709764526,0.3040218,99319.0,99318.0,0.28715026]
[1746709765115,0.3040218,99319.0,99318.0,0.23681546]
[1746709765828,0.3648218,99319.0,99318.0,0.23681546]
[1746709766828,0.3648218,99319.0,99318.0,0.22107615]
[1746709767028,0.3648218,99319.0,99318.0,0.23676096]
[1746709770936,0.3648218,99319.0,99318.0,0.23676088]
[1746709772543,0.3345218,99319.0,99318.0,0.23676088]
[1746709772739,0.3345218,99319.0,99318.0,0.26996088]
[1746709774239,0.3345218,99319.0,99318.0,0.26996057]
[1746709775042,0.3040218,99319.0,99318.0,0.26996057]
[1746709775338,0.0503262,99337.0,99318.0,0.16931157]
[1746709775543,0.3339682,99337.0,99336.0,0.2013026]
[1746709775742,0.3339682,99337.0,99336.0,0.23272617]
[1746709776641,0.3389682,99337.0,99336.0,0.23472617]
[1746709777349,0.3359682,99337.0,99336.0,0.23572617]
[1746709777533,0.3679682,99337.0,99336.0,0.23572617]
[1746709777737,0.3679682,99337.0,99336.0,0.23572381]
[1746709777937,0.3679682,99337.0,99336.0,0.03442121]
[1746709778138,0.3669682,99337.0,99336.0,0.03342121]
[1746709778343,0.3669682,99337.0,99336.0,0.06512121]
[1746709779739,0.3669682,99337.0,99336.0,0.26642781]
[1746709781342,0.3669682,99337.0,99336.0,0.06512121]
[1746709781547,0.3669682,99337.0,99336.0,0.03342121]
[1746709781934,0.7277682,99337.0,99336.0,0.03342121]
[1746709782136,0.8957682,99337.0,99336.0,0.03342121]
[1746709785154,0.8957682,99337.0,99336.0,0.03342283]
[1746709786053,0.8957682,99337.0,99336.0,0.01768481]
[1746709786649,0.8957682,99337.0,99336.0,0.0334233]
[1746709788149,0.8957682,99337.0,99336.0,0.01768481]
[1746709788352,0.8957682,99337.0,99336.0,0.03342333]
[1746709790647,0.8957682,99337.0,99336.0,0.01768481]
[1746709790852,0.8957682,99337.0,99336.0,0.03342334]
[1746709794653,0.9759282,99337.0,99336.0,0.03342334]
[1746709795044,0.9759282,99337.0,99336.0,0.06897334]
[1746709795346,0.9759282,99337.0,99336.0,0.05323481]
[1746709795651,0.9439282,99337.0,99336.0,0.05323481]
[1746709796251,0.9439282,99337.0,99336.0,0.06897265]
[1746709797748,0.9439282,99337.0,99336.0,0.05323481]
[1746709797749,0.8637682,99337.0,99336.0,0.05323481]
[1746709797961,0.9438082,99337.0,99336.0,0.0689732]
[1746709798254,0.7758082,99337.0,99336.0,0.05323481]
[1746709799149,0.7758082,99337.0,99336.0,0.06897245]
[1746709801456,0.7758082,99337.0,99336.0,0.06897229]
[1746709802356,0.7438082,99337.0,99336.0,0.06897229]
[1746709802558,0.6637682,99337.0,99336.0,0.27027889]
[1746709803247,0.6637682,99337.0,99336.0,0.33197889]
[1746709803453,0.6637682,99337.0,99336.0,0.31624141]
[1746709803652,0.6637682,99337.0,99336.0,0.33197792]
[1746709804261,0.6637682,99337.0,99336.0,0.33197781]
[1746709805049,0.3029682,99337.0,99336.0,0.33197781]
[1746709805662,0.3029682,99337.0,99336.0,0.33197779]
[1746709809463,0.001,99337.0,99336.0,0.33197779]
[1746709809660,0.2023046,99337.0,99336.0,0.33197779]
[1746709811663,0.2023046,99337.0,99336.0,0.13067119]
[1746709812562,0.2023046,99337.0,99336.0,0.33197779]
[1746709814362,0.2023046,99337.0,99336.0,0.33197707]
[1746709818266,0.2023046,99337.0,99336.0,0.34333827]
[1746709819969,0.2023046,99337.0,99336.0,0.34335418]
[1746709821764,0.2023046,99337.0,99336.0,0.32761852]
[1746709822069,0.2023046,99337.0,99336.0,0.34335418]
[1746709824361,0.19522356,99337.0,99336.0,0.34335418]
[1746709825466,0.2516223,99344.0,99343.0,0.2012924]
[1746709825674,0.2516223,99344.0,99343.0,0.22844824]
[1746709825873,0.2516223,99344.0,99343.0,0.24413305]
[1746709826064,0.2842223,99344.0,99343.0,0.24413305]
[1746709826372,0.2842223,99344.0,99343.0,0.30863305]
[1746709826866,0.2852223,99344.0,99343.0,0.30863305]
[1746709827875,0.2862223,99344.0,99343.0,0.30863305]
[1746709829272,0.2852223,99344.0,99343.0,0.29821254]
[1746709829774,0.2842223,99344.0,99343.0,0.29921254]
[1746709831078,0.2842223,99344.0,99343.0,0.29921246]
[1746709831269,0.3166223,99344.0,99343.0,0.29921246]
[1746709831575,0.3166223,99344.0,99343.0,0.09792006]
[1746709831780,0.3166223,99344.0,99343.0,0.03342006]
[1746709832174,0.4846223,99344.0,99343.0,0.03342006]
[1746709832875,0.4846223,99344.0,99343.0,0.03342083]
[1746709834776,0.4846223,99344.0,99343.0,0.03342025]
[1746709836579,0.4846223,99344.0,99343.0,0.03342044]
[1746709836883,0.4846223,99344.0,99343.0,0.01773563]
[1746709838781,0.5852823,99344.0,99343.0,0.01773563]
[1746709838989,0.5852823,99344.0,99343.0,1e-08]
[1746709838990,0.59554043,99344.0,99343.0,1e-08]
[1746709839687,0.2013046,99337.0,99336.0,0.03555]
[1746709839872,0.5621046,99337.0,99336.0,0.03555]
[1746709840072,0.7301046,99337.0,99336.0,0.03555]
[1746709840477,0.7917046,99337.0,99336.0,0.03555]
[1746709840885,0.7927046,99337.0,99336.0,0.03855]